bitfinex/quotes_ETHUSD_20220123
["timestamp","ask_amount","ask_price","bid_price","bid_amount"]
[1642899022668,0.492,2439.6,2439.1,0.01359478]
[1642899022868,0.492,2439.6,2439.2,0.00397896]
[1642899023566,1.32667895,2439.4,2439.2,0.00397896]
[1642899024068,2.842,2439.3,2439.2,0.00397896]
[1642899024269,2.6,2439.2,2439.1,0.01359478]
[1642899024471,4.692,2439.2,2439.1,0.01359478]
[1642899024670,4.77885181,2439.2,2439.1,0.01471054]
[1642899024902,3.74523672,2439.1,2438.5,0.00682108]
[1642899025107,5.49396604,2439.0,2438.5,0.00682108]
[1642899025311,2.6,2438.8,2437.9,0.00163137]
[1642899025508,0.492,2438.7,2437.9,0.00163137]
[1642899025711,2.45440527,2438.7,2438.0,0.0022737]
[1642899026021,1.12975951,2438.5,2438.0,0.0022737]
[1642899026303,0.492,2438.4,2438.0,0.0022737]
[1642899026708,0.59225,2438.4,2438.0,0.0022737]
[1642899026904,0.89225,2438.4,2438.0,0.0022737]
[1642899027105,0.89225,2438.4,2437.9,0.00163137]
[1642899027305,2.6,2438.3,2437.9,0.00163137]
[1642899027512,0.49527415,2438.2,2437.9,0.00163137]
[1642899027708,0.10025,2438.0,2437.9,0.00163137]
[1642899027909,0.492,2438.0,2437.9,0.00163137]
[1642899028107,0.792,2438.0,2437.9,0.00163137]
[1642899028751,0.89225,2438.0,2437.9,0.00163137]
[1642899029150,0.792,2438.0,2437.9,0.00163137]
[1642899029355,0.492,2438.0,2437.9,0.00163137]
[1642899029652,1.12831685,2438.2,2438.0,0.98399999]
[1642899029653,0.00113685,2438.2,2438.0,0.98399999]
[1642899030454,0.00113685,2438.2,2438.1,1.32185793]
[1642899030653,0.00113685,2438.2,2438.1,1.27185793]
[1642899031557,0.00113685,2438.2,2438.0,0.98399999]
[1642899032405,0.00113685,2438.2,2438.0,0.93399999]
[1642899032604,0.00113685,2438.2,2438.0,2.11756538]
[1642899034305,0.00113685,2438.2,2438.0,2.06756538]
[1642899035709,0.00113685,2438.2,2438.1,2.23307153]
[1642899036155,0.00113685,2438.2,2438.1,2.65485]
[1642899036358,0.00113685,2438.2,2438.1,28.07485]
[1642899037362,0.00113685,2438.2,2438.1,26.57485]
[1642899038258,0.00113685,2438.2,2438.1,25.62485]
[1642899038959,1.2219,2441.3,2438.3,0.0033737]
[1642899038960,0.492,2439.9,2438.3,0.0033737]
[1642899039158,1.1712,2440.0,2438.8,0.01258726]
[1642899039357,0.00625266,2439.3,2438.8,0.01258726]
[1642899039557,0.00625266,2439.3,2438.9,0.01208308]
[1642899039814,0.00568424,2439.2,2439.0,1.52759473]
[1642899040204,0.00511581,2439.1,2439.0,1.52759473]
[1642899040712,0.00511581,2439.1,2439.0,25.44759473]
[1642899040713,0.00909478,2439.1,2439.0,25.44759473]
[1642899041202,0.00909478,2439.1,2439.0,1.52759473]
[1642899041405,0.00909478,2439.1,2439.0,3.02759473]
[1642899042905,0.00909478,2439.1,2439.0,27.15244473]
[1642899043207,9.478e-05,2439.1,2439.0,26.21375056]
[1642899043406,0.04,2440.5,2439.2,0.01483913]
[1642899043662,0.04,2440.5,2439.6,0.0124154]
[1642899043856,0.00341054,2440.4,2439.6,0.2172654]
[1642899044058,0.00341054,2440.4,2439.7,27.27253922]
[1642899044256,0.04,2440.5,2440.3,1.5]
[1642899044257,0.00294211,2440.5,2440.3,1.5]
[1642899044461,0.00294211,2440.5,2440.4,1.25876031]
[1642899044852,0.00407896,2440.5,2440.4,1.25876031]
[1642899045253,0.00407896,2440.5,2440.1,3.8888]
[1642899045457,0.00407896,2440.5,2439.8,0.00284212]
[1642899045753,0.00407896,2440.5,2439.7,0.00341054]
[1642899046353,1.52165328,2440.4,2439.8,1.54647077]
[1642899046757,1.52165328,2440.4,2439.9,0.00227369]
[1642899047409,0.00407896,2440.5,2439.9,0.00227369]
[1642899047608,0.00407896,2440.5,2439.9,2.19211037]
[1642899047805,0.00407896,2440.5,2439.9,0.00227369]
[1642899048004,0.00407896,2440.5,2440.0,0.00170527]
[1642899048204,0.00407896,2440.5,2439.8,1.54647077]
[1642899048205,0.00407896,2440.5,2439.9,0.00227369]
[1642899048407,0.00407896,2440.5,2440.4,1.29709713]
[1642899049415,0.00407896,2440.5,2440.4,1.50194713]
[1642899049633,0.08943173,2441.5,2440.5,2.61223688]
[1642899049634,0.00257992,2441.5,2440.5,2.61223688]
[1642899049809,0.04,2441.7,2440.6,2.7887121]
[1642899050009,0.00397897,2441.2,2440.8,0.01279772]
[1642899050213,0.00397897,2441.2,2440.9,1.12963285]
[1642899050412,0.04,2441.7,2441.1,27.57]
[1642899050809,0.00625266,2441.6,2441.1,27.57]
[1642899051056,0.00625266,2441.6,2441.2,0.20485]
[1642899051261,0.00568424,2441.5,2441.2,0.20485]
[1642899051461,0.00568424,2441.5,2441.3,23.92]
[1642899051655,0.04,2441.7,2441.5,23.92]
[1642899052057,0.00625266,2441.6,2441.5,23.92]
[1642899052256,0.00625266,2441.6,2441.5,25.42]
[1642899053456,0.00625266,2441.6,2441.5,1.5]
[1642899054060,0.00625266,2441.6,2441.5,25.42]
[1642899054457,0.00625266,2441.6,2441.5,1.5]
[1642899055299,0.00625266,2441.6,2441.5,23.92]
[1642899055503,0.00625266,2441.6,2441.4,2.68888776]
[1642899055801,0.04,2441.7,2441.4,2.68888776]
[1642899055802,0.00568424,2441.5,2441.4,2.68888776]
[1642899056403,0.00568424,2441.5,2441.4,1.18888776]
[1642899058405,0.00568424,2441.5,2441.4,1.39373776]
[1642899058662,0.04,2442.2,2441.5,26.52]
[1642899058860,0.04,2442.2,2441.6,0.21724466]
[1642899059060,0.04,2442.9,2442.1,0.01285922]
[1642899059267,0.85590827,2444.0,2442.7,0.01276455]
[1642899059268,3.20994279,2444.0,2442.7,0.01276455]
[1642899059465,3.5,2444.0,2442.9,23.92]
[1642899059657,3.5,2444.0,2443.1,23.92]
[1642899059857,3.5,2444.0,2443.0,0.20485]
[1642899060058,3.5,2444.0,2442.8,0.20485]
[1642899060258,3.5,2444.0,2442.9,1.5]
[1642899060457,3.5,2444.0,2443.5,1.50548645]
[1642899060658,1.36558411,2444.1,2443.5,1.50548645]
[1642899060860,0.67910181,2444.0,2442.9,1.5]
[1642899061068,0.01236979,2443.7,2442.9,1.5]
[1642899061256,0.492,2443.6,2442.9,1.5]
[1642899061456,0.58737816,2443.6,2442.4,3.2737]
[1642899061658,0.00795793,2443.5,2442.5,2.17219594]
[1642899062057,0.0073895,2443.4,2443.2,1.13280874]
[1642899062505,0.00682108,2443.3,2443.2,1.13280874]
[1642899063507,0.00682108,2443.3,2443.0,1.5]
[1642899063914,0.00625265,2443.2,2443.0,1.5]
[1642899064310,2.20568423,2443.1,2442.2,0.20485]
[1642899064514,2.20568423,2443.1,2442.6,1.13581466]
[1642899064515,0.00568423,2443.1,2442.6,1.13581466]
[1642899064710,0.00511581,2443.0,2442.6,1.13581466]
[1642899064910,0.00511581,2443.0,2442.7,2.44856674]
[1642899065114,0.63225,2444.1,2442.7,2.44856674]
[1642899065115,0.00454738,2442.9,2442.7,2.44856674]
[1642899065310,0.00454738,2442.9,2442.6,1.34050466]
[1642899065311,0.00454738,2442.9,2442.8,3.55469]
[1642899065511,0.04,2444.1,2442.8,3.55469]
[1642899065710,0.04,2444.1,2443.9,1.15592252]
[1642899065913,0.01080004,2444.0,2443.9,1.15592252]
[1642899066359,0.01080004,2444.0,2443.9,2.65592252]
[1642899067567,0.01080004,2444.0,2443.9,4.977035]
[1642899067760,0.00010004,2444.1,2443.9,1.5]
[1642899068161,0.00010004,2444.1,2444.0,2.21295975]
[1642899068461,0.00010004,2444.1,2444.0,27.83764975]
[1642899068660,0.00010004,2444.1,2444.0,1.5]
[1642899070018,0.04,2444.7,2444.1,0.00069996]
[1642899070421,0.00341054,2444.6,2444.1,0.00069996]
[1642899070823,0.00284212,2444.5,2444.1,0.00069996]
[1642899071217,0.0022737,2444.4,2444.2,1.27585724]
[1642899071722,0.00170527,2444.3,2444.2,1.27585724]
[1642899073319,0.00170527,2444.3,2444.2,2.77585724]
[1642899075158,0.00170527,2444.3,2444.2,2.98054724]
[1642899075356,0.00170527,2444.3,2444.2,2.77585724]
[1642899075556,0.00170527,2444.3,2444.2,2.98054724]
[1642899075758,0.04,2444.7,2444.3,0.00341054]
[1642899076157,0.00170527,2444.6,2444.3,0.00341054]
[1642899076357,0.00170527,2444.6,2444.5,1.5]
[1642899076558,0.04,2444.7,2444.6,1.24064572]
[1642899076959,0.0422737,2444.7,2444.6,1.24064572]
[1642899077417,1.21569028,2445.3,2444.5,1.5]
[1642899077618,0.01242133,2445.1,2444.5,1.5]
[1642899078508,0.01242133,2445.1,2444.3,0.00341054]
[1642899078911,0.01242133,2445.1,2444.4,0.00170527]
[1642899079107,0.01242133,2445.1,2444.6,1.1603632]
[1642899079309,0.01242133,2445.1,2444.4,0.00170527]
[1642899079507,0.50442133,2445.1,2444.4,0.00170527]
[1642899080010,0.50442133,2445.1,2444.7,0.00416451]
[1642899081356,0.492,2445.1,2444.7,0.00416451]
[1642899081555,0.00341054,2445.3,2444.7,0.00416451]
[1642899081958,0.00284211,2445.2,2444.7,0.00416451]
[1642899082363,0.00227369,2445.1,2445.0,1.26502166]
[1642899085103,0.00227369,2445.1,2445.0,1.26916866]
[1642899086504,0.00227369,2445.1,2445.0,0.004147]
[1642899086906,0.49427369,2445.1,2445.0,0.004147]
[1642899087406,2.39427369,2445.1,2445.0,0.004147]
[1642899087706,4.60108226,2445.1,2445.0,0.004147]
[1642899087912,2.6,2445.0,2444.4,0.00170527]
[1642899088106,0.492,2444.9,2444.4,0.00170527]
[1642899088307,0.49313684,2444.9,2444.4,0.00170527]
[1642899088566,0.3,2444.8,2444.4,0.00170527]
[1642899088768,0.01251785,2444.6,2444.4,0.00170527]
[1642899089070,3.092,2444.5,2444.4,0.00170527]
[1642899089471,3.87910181,2444.5,2444.3,1.581e-05]
[1642899089667,1.0,2444.4,2444.3,1.581e-05]
[1642899089869,1.492,2444.4,2444.3,1.581e-05]
[1642899090068,1.57885181,2444.4,2444.1,0.00069996]
[1642899090268,2.60335671,2444.4,2444.1,0.00069996]
[1642899090472,4.18563766,2444.3,2444.2,0.00113685]
[1642899090670,2.6,2444.2,2442.7,6.754]
[1642899090871,0.492,2444.1,2442.7,6.754]
[1642899091068,1.792,2444.1,2442.8,0.00795793]
[1642899091269,0.792,2444.1,2442.8,0.00795793]
[1642899091467,0.3,2444.0,2442.8,0.00795793]
[1642899091671,1.28293251,2442.9,2442.8,0.00795793]
[1642899091874,3.6045,2443.7,2443.1,0.21586501]
[1642899092073,3.6045,2443.7,2442.6,0.00909478]
[1642899092074,1.0,2443.2,2442.6,0.00909478]
[1642899092307,0.01214803,2443.4,2443.2,0.00568424]
[1642899092506,0.01214803,2443.4,2442.6,0.00909478]
[1642899092507,0.492,2443.1,2442.6,0.00909478]
[1642899092710,0.08685181,2443.8,2442.0,0.35587538]
[1642899092711,0.492,2443.3,2442.0,0.35587538]
[1642899092908,0.492,2443.3,2442.3,0.20469]
[1642899093113,6.50027829,2444.0,2442.6,0.01232517]
[1642899093114,1.21257829,2444.0,2442.6,0.01232517]
[1642899093309,0.492,2443.9,2442.7,0.20469]
[1642899093510,0.492,2443.9,2442.7,0.00852635]
[1642899094008,0.492,2443.9,2443.3,1.49888853]
[1642899094009,1.492,2443.9,2443.3,1.49888853]
[1642899094208,1.492,2443.9,2442.6,0.00909478]
[1642899094410,1.492,2443.9,2443.4,0.00454739]
[1642899094608,1.492,2443.9,2442.6,0.00909478]
[1642899094810,4.44867368,2443.9,2442.5,0.0096632]
[1642899095008,4.44867368,2443.9,2442.9,0.00385499]
[1642899095009,5.47327368,2443.9,2442.9,0.00385499]
[1642899095209,2.5166,2443.9,2442.9,0.00385499]
[1642899095410,2.5166,2443.9,2443.0,0.00682108]
[1642899095714,0.3,2443.5,2443.0,0.00682108]
[1642899095915,0.492,2443.4,2443.0,0.00682108]
[1642899096864,0.792,2443.4,2443.0,0.00682108]
[1642899097055,0.492,2443.4,2443.0,0.00682108]
[1642899097458,0.792,2443.4,2443.0,0.00682108]
[1642899097657,0.492,2443.4,2443.0,0.00682108]
[1642899098158,1.620027,2444.1,2443.0,0.00682108]
[1642899098159,1.492,2444.0,2443.0,0.00682108]
[1642899098362,4.992,2444.0,2443.2,1.5]
[1642899098557,1.0,2443.9,2443.2,1.5]
[1642899098755,0.492,2443.8,2443.3,0.00511581]
[1642899099154,0.492,2443.8,2443.3,1.18044044]
[1642899099358,0.620027,2444.1,2443.3,1.18044044]
[1642899099560,5.3739,2444.7,2443.4,0.00454739]
[1642899099816,2.2442,2444.7,2443.4,0.00454739]
[1642899100015,0.00113684,2444.4,2443.4,0.00837315]
[1642899100215,0.00227369,2444.6,2443.4,23.92837315]
[1642899100521,0.00170527,2444.5,2443.9,1.5]
[1642899100822,0.00113685,2444.4,2444.0,0.00113685]
[1642899101025,0.00113685,2444.4,2444.1,0.34288997]
[1642899101215,0.492,2445.6,2444.3,2.80469]
[1642899101216,0.00397896,2444.9,2444.3,2.80469]
[1642899101614,0.00257829,2445.5,2444.3,2.80469]
[1642899101615,0.00341054,2444.8,2444.3,2.80469]
[1642899101816,0.00341054,2444.8,2444.7,1.48963746]
[1642899102016,1.54183442,2445.4,2444.3,2.6]
[1642899102017,0.00284212,2444.7,2444.3,2.6]
[1642899102214,1.54183442,2445.4,2444.3,2.6]
[1642899102215,0.00341054,2444.8,2444.3,2.6]
[1642899102416,5.71161054,2445.2,2444.5,1.5]
[1642899102815,0.00170527,2445.1,2444.6,0.00113685]
[1642899103016,0.00170527,2445.1,2444.8,1.24023416]
[1642899103214,0.00113685,2445.0,2444.6,0.00113685]
[1642899103417,0.00113685,2445.0,2444.7,1.5]
[1642899104360,0.00113685,2445.0,2444.9,1.5]
[1642899104959,0.00113685,2445.0,2444.9,1.50373814]
[1642899105359,0.00113685,2445.0,2444.9,0.00373814]
[1642899106961,5.66274739,2445.2,2444.9,0.00373814]
[1642899110013,5.66274739,2445.2,2444.6,1.37166843]
[1642899110513,5.66274739,2445.2,2444.7,0.00170527]
[1642899112558,5.66274739,2445.2,2445.0,1.26968421]
[1642899114159,5.66274739,2445.2,2444.7,0.00170527]
[1642899115010,5.66274739,2445.2,2445.1,0.00372646]
[1642899115211,5.61274739,2445.2,2445.1,0.00372646]
[1642899115422,5.61388423,2445.2,2445.1,0.00372646]
[1642899116211,5.91388423,2445.2,2445.1,0.00372646]
[1642899116414,6.91388423,2445.2,2445.1,0.00372646]
[1642899117011,7.40588423,2445.2,2445.1,0.00372646]
[1642899119960,7.40588423,2445.2,2444.7,0.00170527]
[1642899119961,7.40588423,2445.2,2444.7,0.00543173]
[1642899120159,1.0,2445.1,2444.7,0.00543173]
[1642899120359,0.492,2445.0,2444.8,0.00113685]
[1642899120557,0.792,2445.0,2444.8,0.00113685]
[1642899120760,1.46672891,2444.9,2444.8,0.00113685]
[1642899120962,1.95872891,2444.9,2444.8,0.00113685]
[1642899121157,1.95872891,2444.9,2444.7,0.00372646]
[1642899121158,2.4,2444.8,2444.7,0.00372646]
[1642899121361,3.192,2444.8,2444.7,0.00372646]
[1642899121559,4.192,2444.8,2444.7,0.00372646]
[1642899122612,1.792,2444.8,2444.7,0.00372646]
[1642899122814,0.492,2444.8,2444.7,0.00372646]
[1642899123313,5.62684698,2445.2,2444.7,0.00372646]
[1642899123314,5.61388423,2445.2,2444.7,0.00372646]
[1642899123711,0.00170527,2445.1,2444.7,0.00372646]
[1642899124113,0.00113685,2445.0,2444.8,1.36764485]
[1642899124511,0.00170527,2445.1,2444.8,1.36764485]
[1642899124912,0.00113685,2445.0,2444.9,0.00373814]
[1642899126366,0.00113685,2445.0,2444.9,1.50373814]
[1642899126765,0.00113685,2445.0,2444.9,1.70842814]
[1642899126972,0.00113685,2445.0,2444.9,3.90842814]
[1642899127170,0.60599987,2445.8,2445.0,2.62955154]
[1642899127372,0.60599987,2445.8,2445.7,1.5]
[1642899127566,0.04,2445.9,2445.7,1.5]
[1642899128266,0.04,2445.9,2445.8,1.3251713]
[1642899128468,0.04,2445.9,2445.8,2.8251713]
[1642899128669,0.04511581,2445.9,2445.8,2.8251713]
[1642899129365,0.04,2446.5,2445.8,2.8251713]
[1642899129575,0.04,2446.5,2445.9,28.95839013]
[1642899129831,0.00113685,2446.1,2445.9,28.95839013]
[1642899130414,0.00113685,2446.1,2446.0,1.5]
[1642899130618,0.00113685,2446.1,2446.0,27.91072193]
[1642899131614,0.00113685,2446.1,2446.0,25.62469]
[1642899131817,0.00113685,2446.1,2446.0,1.5]
[1642899132515,0.00113685,2446.1,2445.8,2.82885691]
[1642899133316,0.00113685,2446.1,2446.0,1.5]
[1642899134258,0.00113685,2446.1,2446.0,1.70469]
[1642899134658,0.00113685,2446.1,2446.0,1.5]
[1642899134871,0.04,2446.5,2446.1,2.6]
[1642899135065,0.04,2446.5,2446.3,23.92]
[1642899135262,0.04,2446.5,2446.4,2.80469]
[1642899135462,0.04,2446.5,2446.4,5.30469]
[1642899135660,0.04227369,2446.5,2446.4,5.30469]
[1642899136060,0.04,2447.2,2446.5,2.6]
[1642899136264,0.04,2447.2,2447.1,1.5]
[1642899137071,0.04,2447.2,2447.1,2.91244862]
[1642899137528,0.04,2447.2,2447.1,3.11713862]
[1642899138425,0.371262,2447.2,2447.1,3.11713862]
[1642899139025,0.371262,2447.2,2447.1,2.91244862]
[1642899140025,0.371262,2447.2,2447.1,2.91605844]
[1642899140235,0.371262,2447.2,2447.1,1.50360982]
[1642899140426,0.371262,2447.2,2447.1,0.00360982]
[1642899140827,0.9594425,2447.2,2447.1,0.00360982]
[1642899141268,0.9594425,2447.2,2447.1,1.50360982]
[1642899142066,0.9094425,2447.2,2447.1,1.50360982]
[1642899142265,0.9094425,2447.2,2447.1,0.00360982]
[1642899142464,1.31847224,2447.2,2447.1,0.00360982]
[1642899144472,0.04,2447.7,2447.1,0.00360982]
[1642899144473,0.49457829,2448.4,2447.4,2.9]
[1642899144671,0.42806842,2448.4,2447.9,0.01221533]
[1642899144947,0.62806842,2448.4,2448.0,0.20469]
[1642899145143,0.62806842,2448.3,2448.1,23.92]
[1642899145345,0.04257829,2448.6,2448.2,1.48405702]
[1642899145346,0.04,2448.6,2448.2,1.48405702]
[1642899145552,0.01136847,2448.5,2448.2,1.48405702]
[1642899145746,0.44511581,2448.8,2448.6,0.0231056]
[1642899145944,0.62806842,2448.7,2448.6,0.9837056]
[1642899146144,0.62920527,2448.7,2448.6,25.08529]
[1642899146345,0.44511581,2448.8,2448.7,1.27665771]
[1642899146746,0.04,2449.7,2448.9,23.92]
[1642899146944,0.15313409,2449.9,2449.0,2.6]
[1642899147143,0.00341054,2449.3,2449.0,2.6]
[1642899147343,0.00341054,2449.3,2449.2,0.20469]
[1642899147344,0.01590244,2449.3,2449.2,0.20469]
[1642899147552,0.15313409,2449.9,2449.2,0.20469]
[1642899147746,0.15313409,2449.9,2449.3,1.31152403]
[1642899148051,0.00628674,2449.9,2449.7,23.92]
[1642899148242,0.00628674,2449.9,2449.8,1.5]
[1642899148444,0.00628674,2449.9,2449.8,25.62469]
[1642899148673,0.37393891,2450.2,2449.8,25.62469]
[1642899148865,0.01702844,2450.5,2449.9,1.36120091]
[1642899149069,0.00341054,2450.4,2449.9,1.36120091]
[1642899149268,0.00341054,2450.4,2449.8,1.5]
[1642899149471,0.00284212,2450.3,2449.8,1.5]
[1642899149869,0.0022737,2450.2,2449.8,1.5]
[1642899150068,0.0022737,2450.2,2449.8,1.50345265]
[1642899150267,0.00170527,2450.1,2449.9,0.20469]
[1642899150469,0.00170527,2450.1,2449.8,1.50345265]
[1642899150676,0.00113685,2450.0,2449.8,2.95680525]
[1642899151268,0.00113685,2450.0,2449.9,1.5]
[1642899152722,2.00113685,2450.0,2449.9,1.5]
[1642899152921,0.50902844,2450.5,2449.9,1.5]
[1642899153124,0.01702844,2450.5,2449.9,1.504]
[1642899153327,0.00227369,2450.4,2449.9,1.504]
[1642899153724,0.00170527,2450.3,2449.9,1.504]
[1642899154122,0.00113685,2450.2,2449.9,1.504]
[1642899154325,0.00113685,2450.2,2449.9,0.004]
[1642899154523,0.00170527,2450.3,2449.9,0.004]
[1642899154724,1.28044562,2450.0,2449.9,0.004]
[1642899156271,1.28044562,2450.0,2449.1,1.5]
[1642899156272,2.6,2449.9,2449.1,1.5]
[1642899156468,6.01628582,2449.9,2449.1,1.5]
[1642899156670,6.10313763,2449.9,2449.2,0.00454739]
[1642899156869,0.492,2449.8,2449.2,0.00454739]
[1642899157072,1.33410369,2449.3,2449.2,0.00454739]
[1642899157768,1.33410369,2449.3,2448.3,0.16264793]
[1642899157971,1.33410369,2449.3,2448.3,0.20422]
[1642899158169,0.00341054,2449.2,2448.4,0.00113685]
[1642899158382,1.28953256,2448.6,2448.4,0.00113685]
[1642899158571,0.00284212,2449.1,2448.8,2.57906512]
[1642899158875,0.01245712,2449.5,2448.8,6.512e-05]
[1642899158876,2.64157,2448.9,2448.8,6.512e-05]
[1642899159075,2.64157,2448.9,2448.4,0.00113685]
[1642899159076,2.6,2448.8,2448.4,0.00113685]
[1642899159271,0.492,2448.7,2448.4,0.00113685]
[1642899159472,0.492,2448.7,2447.3,0.0073895]
[1642899159673,1.09925791,2447.6,2447.3,0.0073895]
[1642899159916,0.04157,2448.6,2447.3,0.0073895]
[1642899159917,0.492,2448.3,2447.6,3.29777372]
[1642899160313,0.492,2448.3,2447.7,0.00511581]
[1642899160520,0.792,2448.3,2447.7,0.00511581]
[1642899160824,0.83357,2448.3,2447.7,0.00511581]
[1642899161024,1.15436163,2448.2,2447.7,0.00511581]
[1642899162021,1.75436163,2448.2,2447.7,0.00511581]
[1642899162415,0.492,2448.1,2447.7,0.00511581]
[1642899163768,1.55,2448.0,2447.6,3.24635364]
[1642899163966,1.48425275,2447.7,2447.6,3.24635364]
[1642899164565,1.02261,2448.8,2448.4,0.3547004]
[1642899164772,1.02261,2448.8,2447.6,3.24635364]
[1642899164773,1.47008222,2447.7,2447.6,3.24805891]
[1642899165366,2.26208222,2447.7,2447.6,3.24805891]
[1642899165566,4.61208222,2447.7,2447.2,3.71023131]
[1642899165781,2.6,2447.6,2447.2,3.71023131]
[1642899165966,0.492,2447.5,2447.3,0.00170527]
[1642899166368,0.792,2447.5,2447.3,0.00170527]
[1642899166767,2.6,2447.3,2445.8,2.98473248]
[1642899166968,1.092,2447.3,2445.9,3.47859783]
[1642899167170,1.092,2447.3,2446.2,0.0127313]
[1642899167171,0.492,2447.3,2446.2,0.0127313]
[1642899167418,2.3959,2447.9,2446.3,3.8210178]
[1642899167419,2.8879,2447.9,2446.3,3.8210178]
[1642899167615,2.8879,2447.9,2446.4,7.20231593]
[1642899167616,0.492,2447.9,2446.4,7.20231593]
[1642899167818,1.43289937,2448.3,2447.5,1.29089836]
[1642899168216,0.00397896,2448.0,2447.6,2.24745764]
[1642899168418,0.00397896,2448.0,2447.6,2.42304781]
[1642899168618,0.0025765,2449.1,2447.6,2.42304781]
[1642899168619,0.00341054,2447.9,2447.6,2.42304781]
[1642899168830,0.00341054,2447.9,2447.7,23.92]
[1642899169016,0.0025765,2449.1,2447.5,1.64557926]
[1642899169017,0.0073895,2448.6,2447.5,1.64557926]
[1642899169217,1.17745093,2448.9,2447.6,2.31522964]
[1642899169516,0.00852635,2448.8,2447.6,2.36596342]
[1642899169918,0.00795793,2448.7,2447.8,0.00356904]
[1642899170317,0.0073895,2448.6,2447.8,0.00356904]
[1642899170516,0.0073895,2448.6,2448.0,1.26848186]
[1642899170716,7.972,2449.2,2448.0,1.26848186]
[1642899170717,0.00682108,2448.5,2448.0,1.26848186]
[1642899171168,1.0,2448.8,2448.0,1.26848186]
[1642899171169,0.00625265,2448.4,2448.0,1.26848186]
[1642899171569,0.00568423,2448.3,2447.8,2.4058077]
[1642899171765,0.00568423,2448.3,2447.8,0.00356904]
[1642899171967,1.38548514,2448.6,2447.8,0.00356904]
[1642899171968,0.00511581,2448.2,2447.8,0.00356904]
[1642899172366,2.47748514,2448.6,2447.8,0.00356904]
[1642899172367,0.00454738,2448.1,2447.8,0.00356904]
[1642899172769,0.00397896,2448.0,2447.8,0.00356904]
[1642899173170,2.60341054,2447.9,2447.8,0.00356904]
[1642899173370,4.22701054,2447.9,2447.8,0.00356904]
[1642899173568,4.82701054,2447.9,2447.8,0.00356904]
[1642899174814,2.22701054,2447.9,2447.8,0.00356904]
[1642899175017,1.09541054,2447.9,2447.0,1.28509873]
[1642899175220,1.22367301,2447.7,2447.0,1.28509873]
[1642899175419,0.492,2447.6,2447.1,0.00113685]
[1642899175624,0.49370527,2447.6,2447.1,0.00113685]
[1642899175824,0.00113684,2447.5,2447.1,0.00113685]
[1642899178120,0.49313684,2447.5,2447.1,0.00113685]
[1642899178323,0.57998865,2447.5,2447.1,0.00113685]
[1642899178578,0.87998865,2447.5,2447.1,0.00113685]
[1642899178969,0.3,2447.3,2447.0,0.00356904]
[1642899179170,0.492,2447.2,2447.0,0.00356904]
[1642899179367,2.42113694,2447.2,2447.0,0.00356904]
[1642899179768,2.68685181,2447.1,2447.0,0.00356904]
[1642899179967,3.17885181,2447.1,2445.8,1.48666596]
[1642899180167,1.2055223,2446.5,2445.8,1.48666596]
[1642899180369,0.492,2446.6,2445.9,0.00682108]
[1642899181570,1.35031386,2446.5,2445.9,0.00682108]
[1642899181773,0.8679,2446.5,2445.9,0.00682108]
[1642899182917,0.492,2446.9,2445.9,0.00682108]
[1642899183118,0.492,2446.9,2446.3,1.09527568]
[1642899183322,1.17880527,2447.4,2446.3,1.09527568]
[1642899183521,1.17880527,2447.4,2446.4,0.00397896]
[1642899183522,0.00170527,2447.4,2446.4,0.00397896]
[1642899183721,0.492,2447.5,2446.4,0.00397896]
[1642899183722,0.00113685,2447.3,2446.4,0.00397896]
[1642899184119,0.492,2447.5,2446.4,0.00397896]
[1642899184120,0.00170527,2447.4,2446.4,0.00397896]
[1642899184522,1.40427264,2447.3,2446.4,0.00397896]
[1642899184723,1.12913094,2446.9,2446.4,0.00397896]
[1642899185133,1.12913094,2446.9,2446.6,0.00363896]
[1642899185423,1.12913094,2446.9,2446.7,0.00227369]
[1642899185424,0.492,2446.8,2446.7,0.00227369]
[1642899185620,0.792,2446.8,2446.7,0.00227369]
[1642899186466,3.06925,2447.5,2446.7,0.00227369]
[1642899186467,0.08685181,2447.2,2446.7,0.00227369]
[1642899186682,0.492,2447.5,2446.7,0.00227369]
[1642899186868,0.49427369,2447.5,2446.7,0.00227369]
[1642899187065,0.00170527,2447.4,2446.7,0.00227369]
[1642899187463,1.47102214,2447.3,2446.7,0.00227369]
[1642899187664,1.77102214,2447.3,2446.7,0.00227369]
[1642899187864,2.06988529,2447.3,2446.7,0.00227369]
[1642899188468,0.492,2447.2,2446.7,0.00227369]
[1642899188667,0.792,2447.2,2446.7,0.00227369]
[1642899188867,0.492,2447.2,2446.7,0.00227369]
[1642899189912,0.492,2447.2,2446.9,0.00362147]
[1642899191514,0.00170527,2447.4,2446.9,0.00362147]
[1642899191910,0.492,2447.7,2446.9,0.00362147]
[1642899191911,0.00113685,2447.3,2446.9,0.00362147]
[1642899192320,0.00284212,2447.6,2446.9,0.00362147]
[1642899192716,1.41762532,2447.5,2446.9,0.00362147]
[1642899193113,0.00170527,2447.4,2446.9,0.00362147]
[1642899193575,0.00113685,2447.3,2446.9,0.00362147]
[1642899193963,0.00170527,2447.4,2446.9,0.00362147]
[1642899194365,0.00113685,2447.3,2446.9,0.00362147]
[1642899194772,0.49370527,2447.4,2446.9,0.00362147]
[1642899194963,0.49370527,2447.4,2446.7,0.00588351]
[1642899195262,0.00113685,2447.3,2446.8,0.00170527]
[1642899195863,1.51599066,2447.3,2446.8,0.00170527]
[1642899196064,0.00113685,2447.3,2446.8,0.00170527]
[1642899196269,0.00113685,2447.3,2446.8,0.01395328]
[1642899196567,3.685e-05,2447.3,2446.9,24.12535685]
[1642899196765,3.685e-05,2447.3,2447.2,2.61210706]
[1642899196965,3.685e-05,2447.3,2447.2,4.11632706]
[1642899197166,0.0025765,2448.5,2448.4,1.31544504]
[1642899197424,1.33553272,2449.0,2448.4,1.31544504]
[1642899197623,1.33553272,2449.0,2448.0,0.01657765]
[1642899197624,0.00625265,2448.4,2448.0,0.01657765]
[1642899198119,0.00568423,2448.3,2447.9,0.20422]
[1642899198321,0.00568423,2448.3,2447.7,0.02172625]
[1642899198529,0.00568423,2448.3,2447.3,9.5485]
[1642899198530,1.50557605,2448.0,2447.3,4.55078413]
[1642899198727,1.50557605,2448.0,2447.3,0.1641]
[1642899198922,0.00341054,2447.9,2447.3,0.1641]
[1642899199322,0.00284211,2447.8,2447.3,0.1641]
[1642899199724,0.00227369,2447.7,2447.3,0.1641]
[1642899199927,0.00227369,2447.7,2447.5,0.00358651]